Cogmind - Beta 10.1 @@@ ROGUE MODE // 2020.10.06 @ 23:21:25 Player: Robotson Result: Destroyed by G-34 Mercenary with Small Laser Performance ------------- Evolutions (0) 0 Regions Visited (1) 200 Robots Destroyed (10) 50 Value Destroyed (231) 231 Prototype IDs (0) 0 Alien Tech Used (0) 0 Bonus (0) 0 TOTAL SCORE: 481 Bonus ------- None Cogmind --------- Core Integrity 0/250 Matter 290/300 Energy 125/125 System Corruption 0% Temperature Cool (6) Movement Rolling (110) Ox1 Location -10/Materials Parts ------- > --- POWER (1) -------- Light Ion Engine > --- PROPULSION (2) --- Compact Wheel > --- UTILITY (2) ------ Small Storage Unit Medium Storage Unit > --- WEAPON (2) ------- Particle Gun Assault Rifle > --- INVENTORY (10) --- Ion Engine Light Nuclear Core Hover Unit Flight Unit High-capacity Storage Unit Light Assault Rifle Light Assault Rifle Peak State ------------ > --- POWER ------------ Ion Engine > --- PROPULSION ------- Wheel Compact Wheel > --- UTILITY ---------- Small Storage Unit Medium Storage Unit > --- WEAPON ----------- Medium Laser Light Assault Rifle > --- INVENTORY -------- Ion Engine Light Ion Engine Wheel Compact Wheel Hover Unit Flight Unit Medium Laser Medium Laser Light Assault Rifle Mining Laser [Rating: 8] Favorites ----------- Power Ion Engine Engine Ion Engine Propulsion Wheel Wheel Wheel Utility Small Storage Unit Storage Small Storage Unit Weapon Medium Laser Energy Gun Medium Laser Ballistic Gun Light Assault Rifle Special Weapon Mining Laser Build | -11 -10 ------- Run | Scr Mat Slots Evolved . | . . Power . | . . Propulsion . | . . Utility . | . . Weapon . | . . Parts Attached 15 | 5 10 Power 2 | 1 1 Engine 2 | 1 1 Core . | . . Reactor . | . . Propulsion 4 | 2 2 Treads . | . . Leg . | . . Wheel 4 | 2 2 Hover . | . . Flight . | . . Utility 2 | 1 1 Device . | . . Storage 2 | 1 1 Processor . | . . Hackware . | . . Protection . | . . Artifact . | . . Weapon 7 | 1 6 Energy Gun 4 | 1 3 Energy Cannon . | . . Ballistic Gun 2 | . 2 Ballistic Cannon . | . . Launcher . | . . Special Weapon 1 | . 1 Impact Weapon . | . . Slashing Weapon . | . . Piercing Weapon . | . . Special Melee Weapon . | . . Unidentified Prototypes . | . . Parts Lost 8 | . 8 Power 1 | . 1 Propulsion 3 | . 3 Utility . | . . Weapon 4 | . 4 Highest Loss Streak 8 | . 8 Average Slot Usage (%) 94 | . 94 Engine 13 | . 13 Wheel 26 | . 26 Storage 26 | . 26 Energy Gun 12 | . 12 Ballistic Gun 12 | . 12 Naked Turns . | . . Heaviest Build 20 | 11 20 Greatest Support 26 | 26 26 Greatest Overweight (x) 2 | 2 1 Average Overweight (x) . | . . Largest Inventory Capacity 10 | 6 10 Average Capacity 9 | 5 9 Most Carried 10 | 3 10 Average Carried 6 | 1 7 Final Capacity 10 | 6 10 Final Carried 7 | 3 7 Class Distribution -------------------- 100% | Mutant Dominant Class ---------------- Mutant | -10/Materials Resources | -11 -10 ----------- Run | Scr Mat Matter Collected 371 | 235 136 Remotely . | . . Salvage Created 543 | . 543 Parts 23 | . 23 Haulers Intercepted . | . . Recyclers Shooed 1 | . 1 Parts Field Recycled . | . . Retrieved Matter . | . . Parts Self-Destructed . | . . Prevented . | . . Kills | -11 -10 ------- Run | Scr Mat Combat Hostiles Destroyed 5 | . 5 Guns 5 | . 5 Classes Destroyed 4 | . 4 Worker 1 | . 1 Recycler 3 | . 3 Watcher 1 | . 1 Grunt 5 | . 5 Best Kill Streak 5 | . 5 Combat Bots Only 5 | . 5 Max Kills in Single Turn 1 | . 1 Gunslinging . | . . Exploded . | . . Melee . | . . Uniques/NPCs Destroyed . | . . Combat | -11 -10 -------- Run | Scr Mat Damage Taken 773 | . 773 Core 253 | . 253 Absorbed by Shields . | . . Core Remaining (%) 100 | 100 . Volleys Fired 47 | . 47 Largest 2 | . 2 Hottest 150 | . 150 Shots Fired 90 | . 90 Gun 86 | . 86 Cannon . | . . Launcher . | . . Special 4 | . 4 Kinetic 43 | . 43 Thermal 47 | . 47 Explosive . | . . Electromagnetic . | . . Robot Hit Streak 7 | . 7 Robot Miss Streak 9 | . 9 Penetration Max . | . . Secondary Targets 1 | . 1 Max Gunslinging Chain 1 | . 1 Shots Hit Robots 42 | . 42 Core Hits 22 | . 22 Critical Hits . | . . Critical Kills . | . . Critical Parts Destroyed . | . . Melee Attacks . | . . Impact . | . . Slashing . | . . Piercing . | . . Sneak Attacks . | . . Combat Hostiles . | . . Follow-up Attacks . | . . Damage Inflicted 504 | . 504 Guns 504 | . 504 Cannons . | . . Explosions . | . . Melee . | . . Ramming . | . . Kinetic 229 | . 229 Thermal 275 | . 275 Explosive . | . . Electromagnetic . | . . Impact . | . . Slashing . | . . Piercing . | . . Highest Corruption . | . . Average Corruption . | . . Corruption Purged . | . . Overload Shots . | . . Overflow Damage . | . . Projectiles . | . . Explosions . | . . Melee . | . . Knockbacks . | . . Impact . | . . Kinetic . | . . Secondary . | . . Self-Inflicted Damage . | . . Shots . | . . Rammed . | . . Targets Rammed . | . . Kicked . | . . Crushed . | . . Highest Temperature 141 | . 141 Average Temperature 55 | . 55 Received Heat Transfer 405 | . 405 Siege Activations . | . . Robots Corrupted . | . . Combat Hostiles . | . . Parts Fried . | . . Impact Corruptions . | . . Robots Melted . | . . Combat Hostiles . | . . Parts Melted . | . . Heat Transferred 814 | . 814 Parts Sabotaged . | . . Parts Stolen . | . . Parts Stripped . | . . Power Chain Reactions . | . . Missiles Intercepted . | . . Alert | -11 -10 ------- Run | Scr Mat Peak Influence 122 | . 122 Initial . | . . Average 41 | . 47 Maximum Alert Level . | . . Low Security (%) 100 | 100 100 Level 1 . | . . Level 2 . | . . Level 3 . | . . Level 4 . | . . Level 5 . | . . High Security . | . . Max Security . | . . Squads Dispatched 1 | . 1 Investigation . | . . Extermination . | . . Reinforcement 1 | . 1 Assault . | . . Garrison . | . . Intercept . | . . Construction Impeded . | . . Haulers Reinforced . | . . Stealth | -11 -10 --------- Run | Scr Mat Distress Signals 2 | . 2 Communications Jammed . | . . Distress Signals . | . . Times Spotted 19 | . 19 Peak Tracking Total 8 | . 8 Tactical Retreats 1 | . 1 Traps | -11 -10 ------- Run | Scr Mat Traps Triggered 1 | . 1 Indirectly . | . . Trap Hack Attempts . | . . Triggered . | . . Disarmed . | . . Reprogrammed . | . . Reused . | . . Traps Extracted . | . . Installed . | . . Triggered . | . . Machines | -11 -10 ---------- Run | Scr Mat Machines Disabled . | . . Max in Single Turn . | . . Machines Sabotaged . | . . Garrisons Compromised . | . . Overloaded Fab Kills . | . . Fab Network Shutdowns . | . . Hacking | -11 -10 --------- Run | Scr Mat Machines Accessed . | . . Terminals . | . . Fabricators . | . . Repair Stations . | . . Recycling Units . | . . Scanalyzers . | . . Garrison Access . | . . Total Hacks . | . . Successful . | . . Failed . | . . Catastrophic . | . . Database Lockouts . | . . Manual . | . . Terminals . | . . Fabricators . | . . Repair Stations . | . . Recycling Units . | . . Scanalyzers . | . . Garrison Access . | . . Terminal Hacks . | . . Fabricator Hacks . | . . Repair Station Hacks . | . . Recycling Unit Hacks . | . . Scanalyzer . | . . Garrison Access Hacks . | . . Unauthorized Hacks . | . . Terminals . | . . Fabricators . | . . Repair Stations . | . . Recycling Units . | . . Scanalyzers . | . . Garrison Access . | . . Data Cores Recovered . | . . Used . | . . Hacking Detections . | . . Full Trace Events . | . . Feedback Events . | . . Feedback Blocked . | . . Robot Schematics Acquired . | . . Robots Built . | . . Matter . | . . Time . | . . Total Robot Build Rating . | . . Part Schematics Acquired . | . . Parts Built . | . . Matter . | . . Time . | . . Total Part Build Rating . | . . Parts Repaired . | . . Time . | . . Parts Recycled . | . . Recycled Matter . | . . Retrieved Matter . | . . Retrieved Components . | . . Parts Scanalyzed . | . . Part Schematics Acquired . | . . Parts Damaged . | . . Bothacking | -11 -10 ------------ Run | Scr Mat Used RIF Installer . | . . Robots Hacked . | . . Non-combat . | . . Combat . | . . Robot Hacks Applied . | . . Relay Couplers Released . | . . Robots Rewired . | . . Allies Hacked . | . . Hacks Repelled . | . . Allies | -11 -10 -------- Run | Scr Mat Total Allies . | . . Largest Group . | . . Highest-Rated Group . | . . Highest-Rated Ally . | . . Total Orders . | . . Ally Attacks . | . . Total Damage . | . . Kills . | . . Allies Corrupted . | . . Allies Melted . | . . Intel | -11 -10 ------- Run | Scr Mat Robot Analysis Total . | . . Derelict Logs Recovered . | . . Drone Launches . | . . Drone Recoveries . | . . Exploration | -11 -10 ------------- Run | Scr Mat Turns Passed 398 | 48 350 Spaces Moved 239 | 37 202 Core 11 | 11 . Treads . | . . Legs . | . . Wheels 228 | 26 202 Hover . | . . Flight . | . . Fastest Speed 50 | 50 80 Average Speed 90 | 95 89 Slowest Speed 150 | 150 110 Overloaded Moves . | . . Propulsion Burnouts . | . . Robots Hopped . | . . Cave-ins Triggered . | . . Exploration Rate (%) 23 | 3 44 Regions Visited 1 Branch Regions . Pre-discovered Areas . | . . Known Exits Taken . | . . Unknown Exits Taken 1 | 1 . Scrap Searched . | . . Spaces Dug 4 | . 4 Terrain Destroyed 4 | . 4 Melee . | . . Projectile 4 | . 4 AOE . | . . Terrain Rammed . | . . Walls Destroyed . | . . Machines Disabled . | . . Actions | -11 -10 --------- Run | Scr Mat Total 327 | 49 278 Wait 6 | . 6 Move 238 | 36 202 Hop . | . . Pick Up 21 | 8 13 Fast Attach . | . . Attach 14 | 5 9 Detach . | . . Swap 1 | . 1 Drop . | . . Fire 47 | . 47 Melee . | . . Ram . | . . Kick . | . . Crush . | . . Escape Stasis . | . . Rewire . | . . Trap . | . . Miscellaneous . | . . Route ------- -11/Scrapyard -10/Materials History --------- Turn | Location | Event 35 | -11/Scrapyard | Discovered new exit (range 15) 49 | -11/Scrapyard | Entered Materials 323 | -10/Materials | Build established: Mutant 332 | -10/Materials | Core integrity fell below 50% 389 | -10/Materials | Core integrity fell below 20% 399 | -10/Materials | Destroyed by G-34 Mercenary with Small Laser Last Messages --------------- 00329_ Mining Laser destroyed. 00339_ U-05 Engineer builds a Wall. 00341_ G-34 Mercenary destroyed. 00344_ U-05 Engineer builds a Wall. 00355_ Ion Engine destroyed. 00356_ G-47 Trooper destroyed. 00356_ Wheel destroyed. 00360_ Acquired Lgt. Nuclear Core. 00363_ Acquired 41 matter. 00369_ Acquired Hcp. Storage Unit. 00375_ Wheel destroyed. 00376_ G-47 Trooper destroyed. 00377_ W-16 Scout sends out distress signal. 00385_ U-05 Engineer lays Concrete. 00385_ G-34 Mercenary destroyed. 00385_ Switching to secondary target: G-34 Mercenary. 00387_ Med. Laser destroyed. 00390_ G-34 Mercenary destroyed. 00392_ Acquired 31 matter. 00394_ Acquired Particle Gun. Map ----- +----------------------------------------------------+ | | | | | | | | | ???#########?????????????????????????????????????? | | ???# #?????????????????????????????????????? | | ???#""" #?????????????????????????????????????? | | ???#""" #?????????????????????????????????????? | | ???#""" #?????????????????????????????????????? | | ???# ##????????????????????????????????????? | | ???### = # ##???????????????????????????????????? | | ???##^ ## #####???????????????????????????????? | | ???# #???????????????????????????????? | | ##### # # #???########????????????????????? | | # # # """ #???# #????????????????????? | | # + / """ ##??# """ #????????????????????? | | # # # """ #??# "R #???#????????????????? | | # # # #####!""" # #????????????????? | | # # ######## %%+*= / +????????????????? | | # # #??????# [#= # #????????????????? | | #####/## ######## ########????????????????????? | | ??### #???????????????????????????? | | ?# #???????????????????????????? | | ?# #####+#### !! #????????????? ????????? | | ?????# # !! g######## ????????? | | ?????# """ + !! %g @ ????????? | | ?????# """ #u [%* ????????? | | ?????# """ # == """ ????????? | | ?????# # """ """ ??????????????? | | ?????# # """ """???????????????? | | ?????######## """ ######## ???????????????? | | ????????????# #??????? ?????????????? | | ????????????# #??????# ?????????????? | | ??????????### """ + ==/# "T" "????????????? | | ??????????# """ # =!/# """ #????????????? | | ??????????+ """ #? =!/# ????#????????????? | | ??????????# #???? # ?????????????????? | | ??????????# #?????# #?????????????????? | | ??????????# """ #?????# #?????????????????? | | ??????????# """ #?????# #?????????????????? | | ??????????# """ #?????# #?????????????????? | | ??????????# #?????# #?????????????????? | | ??????????# #?????# #?????????????????? | | ??????????# """ #?????# #?????????????????? | | ??????????# """ #?????# #???? "??????????? | | ????####### """ ####### ## #????????????? | | ????# ^ #????????????? | | ????# #????????????? | | ????# #????????????? | | ????######## !* ########T##### #????????????? | +----------------------------------------------------+ Best States ------------- Heat Dissipation 25 Energy Generation 10 Energy Capacity 250 Matter Stores 300 Matter Capacity 300 Sight Range 16 Terrain Scan Density 10 Evasion (%) 44 Item Schematics ----------------- None Robot Schematics ------------------ None Fabricated ------------ Nothing Alien Tech Used ----------------- None Achievements -------------- None Challenges ------------ None Game ------ Seed GatlingGuidedPlating Manual? 0 Play Time 00:13:33 Cumulative 6.3 hours Start 2020.10.06 @ 23:08:26 End 2020.10.06 @ 23:21:25 Sessions 1 Manual Loads 0 Difficulty Rogue Special Mode None Game No. 5 Rogue 5 Adventurer 0 Explorer 0 Win Type - Total 0 Types 0/0/0/0/0/0/0/0/0 Lore% 2 Gallery% 10 Achievement% 12 Wizard Run 0 Options --------- ASCII 1 Keyboard 0 Movement Mouse Keybinds 0 Fullscreen 1 Font 18/SmallcapsGlow Map View 76x50 Tactical HUD 1 Map Filters NONE Filters NONE Steam 1 RUN: 6c645bce-6727-4946-aa24-1effaf410034